[Event "*** Titled Tuesday Blitz"]
[Site "Chess.com"]
[Date "2019.06.04"]
[Round "9"]
[White "Aragon"]
[Black "ZenBull"]
[Result "0-1"]
[WhiteElo "2045"]
[BlackElo "2107"]
[TimeControl "180+2"]
[EndTime "15:04:30 PDT"]
[Termination "ZenBull won by resignation"]

1. e4 {[%clk 0:03:01.9]} 1... c5 {[%clk 0:03:00.4]} 2. Nf3 {[%clk 0:03:02.3]}
2... e6 {[%clk 0:03:01.1]} 3. b4 {[%clk 0:03:02.2]} 3... cxb4 {[%clk 0:02:58.7]}
4. d4 {[%clk 0:03:03.5]} 4... d6 {[%clk 0:02:58.8]} 5. Nbd2 {[%clk 0:03:04.5]}
5... Nd7 {[%clk 0:02:54]} 6. Bd3 {[%clk 0:03:06.4]} 6... e5 {[%clk 0:02:54]} 7.
O-O {[%clk 0:03:06.7]} 7... Ngf6 {[%clk 0:02:55.2]} 8. Bb2 {[%clk 0:03:07.6]}
8... Be7 {[%clk 0:02:56.4]} 9. Nc4 {[%clk 0:03:06.2]} 9... exd4 {[%clk 0:02:56]}
10. Nxd4 {[%clk 0:03:04.4]} 10... Ne5 {[%clk 0:02:54.3]} 11. Nxe5 {[%clk
0:03:00.7]} 11... dxe5 {[%clk 0:02:55.2]} 12. Nf3 {[%clk 0:03:02.5]} 12... O-O
{[%clk 0:02:40.8]} 13. Nxe5 {[%clk 0:03:02.4]} 13... Nd7 {[%clk 0:02:38.2]} 14.
Nc4 {[%clk 0:02:54.9]} 14... Nc5 {[%clk 0:02:35.5]} 15. f4 {[%clk 0:02:52.5]}
15... Nxd3 {[%clk 0:02:34.3]} 16. cxd3 {[%clk 0:02:52.8]} 16... Bc5+ {[%clk
0:02:32.5]} 17. Kh1 {[%clk 0:02:53]} 17... Bd4 {[%clk 0:02:33]} 18. Rb1 {[%clk
0:02:48.8]} 18... a5 {[%clk 0:02:26.2]} 19. f5 {[%clk 0:02:46.7]} 19... b5
{[%clk 0:02:17.3]} 20. Bxd4 {[%clk 0:02:09]} 20... Qxd4 {[%clk 0:02:15.8]} 21.
Nb2 {[%clk 0:02:10.9]} 21... Rd8 {[%clk 0:02:12]} 22. Qf3 {[%clk 0:02:11.1]}
22... Bb7 {[%clk 0:02:04.3]} 23. f6 {[%clk 0:02:11.1]} 23... g6 {[%clk
0:02:02.9]} 24. Qf4 {[%clk 0:02:08.2]} 24... Qd6 {[%clk 0:02:00.7]} 25. e5
{[%clk 0:02:05.7]} 25... Qf8 {[%clk 0:01:57.9]} 26. d4 {[%clk 0:02:04.9]} 26...
Rac8 {[%clk 0:01:52.3]} 27. Rbc1 {[%clk 0:01:58.7]} 27... Rxc1 {[%clk
0:01:48.6]} 28. Rxc1 {[%clk 0:01:58.4]} 28... Rc8 {[%clk 0:01:49]} 29. Rg1
{[%clk 0:01:51.2]} 29... Rc2 {[%clk 0:01:44.8]} 30. Nd3 {[%clk 0:01:51.6]} 30...
Rxa2 {[%clk 0:01:38]} 31. Nc5 {[%clk 0:01:51.3]} 31... Bd5 {[%clk 0:01:37.7]}
32. Nd7 {[%clk 0:01:49.4]} 32... Qa8 {[%clk 0:01:35]} 33. Qg5 {[%clk 0:01:40.8]}
33... Bxg2+ {[%clk 0:01:21.8]} 34. Qxg2 {[%clk 0:01:33.8]} 34... Rxg2 {[%clk
0:01:21.2]} 35. Rxg2 {[%clk 0:01:35.7]} 35... b3 {[%clk 0:01:21]} 36. e6 {[%clk
0:01:32.1]} 36... b2 {[%clk 0:01:14.6]} 0-1

[Event "*** Titled Tuesday Blitz"]
[Site "Chess.com"]
[Date "2019.06.04"]
[Round "9"]
[White "Satscho"]
[Black "NM2019"]
[Result "1-0"]
[WhiteElo "2275"]
[BlackElo "2109"]
[TimeControl "180+2"]
[EndTime "15:04:32 PDT"]
[Termination "Satscho won by resignation"]

1. e4 {[%clk 0:03:01.9]} 1... d5 {[%clk 0:02:59.8]} 2. exd5 {[%clk 0:03:02.1]}
2... Nf6 {[%clk 0:03:01.2]} 3. d4 {[%clk 0:03:02.5]} 3... Nxd5 {[%clk
0:03:02.5]} 4. Nf3 {[%clk 0:02:56.2]} 4... Bg4 {[%clk 0:03:02.9]} 5. Be2 {[%clk
0:02:57.3]} 5... Nd7 {[%clk 0:03:03]} 6. O-O {[%clk 0:02:58.9]} 6... e6 {[%clk
0:03:04]} 7. h3 {[%clk 0:03:00.3]} 7... Bh5 {[%clk 0:03:04.9]} 8. c4 {[%clk
0:03:00.5]} 8... N5b6 {[%clk 0:03:05.7]} 9. Nc3 {[%clk 0:03:02.2]} 9... Bxf3
{[%clk 0:03:06.2]} 10. Bxf3 {[%clk 0:03:01.5]} 10... c6 {[%clk 0:03:07.5]} 11.
b3 {[%clk 0:03:02.2]} 11... Be7 {[%clk 0:03:08]} 12. Bf4 {[%clk 0:02:59.9]}
12... O-O {[%clk 0:03:08.7]} 13. Ne4 {[%clk 0:03:01.1]} 13... Nf6 {[%clk
0:03:09]} 14. Qd2 {[%clk 0:02:54.1]} 14... Nxe4 {[%clk 0:03:05.8]} 15. Bxe4
{[%clk 0:02:56]} 15... Bf6 {[%clk 0:03:07.4]} 16. Rad1 {[%clk 0:02:55.8]} 16...
Nd7 {[%clk 0:03:04.6]} 17. Rfe1 {[%clk 0:02:55.9]} 17... Qe7 {[%clk 0:03:00.1]}
18. d5 {[%clk 0:02:18.4]} 18... cxd5 {[%clk 0:02:58.9]} 19. cxd5 {[%clk
0:02:10.2]} 19... e5 {[%clk 0:02:59.6]} 20. Bf5 {[%clk 0:02:11.5]} 20... Rfe8
{[%clk 0:02:56.5]} 21. d6 {[%clk 0:02:07.9]} 21... Qd8 {[%clk 0:02:56.7]} 22.
Be3 {[%clk 0:02:03.5]} 22... g6 {[%clk 0:02:55.8]} 23. Be4 {[%clk 0:02:04.2]}
23... b6 {[%clk 0:02:53]} 24. Bxa8 {[%clk 0:02:04]} 24... Qxa8 {[%clk
0:02:52.6]} 25. Qd5 {[%clk 0:02:05.4]} 25... Qxd5 {[%clk 0:02:48.3]} 26. Rxd5
{[%clk 0:02:07.3]} 26... Bg7 {[%clk 0:02:48.9]} 27. Rc1 {[%clk 0:02:08.5]} 27...
h6 {[%clk 0:02:47.6]} 28. Rc7 {[%clk 0:02:09.1]} 28... Rd8 {[%clk 0:02:49.3]}
29. Rxa7 {[%clk 0:02:09.2]} 29... f5 {[%clk 0:02:50.4]} 30. f3 {[%clk
0:02:05.2]} 30... Kf7 {[%clk 0:02:51.2]} 31. a4 {[%clk 0:02:05.2]} 31... Ke6
{[%clk 0:02:52.4]} 32. Rd1 {[%clk 0:02:06.1]} 32... Bf8 {[%clk 0:02:47.9]} 33.
a5 {[%clk 0:01:53.4]} 33... bxa5 {[%clk 0:02:46.5]} 34. Rxa5 {[%clk 0:01:55.3]}
34... Rb8 {[%clk 0:02:44.2]} 35. Rd3 {[%clk 0:01:52.2]} 35... e4 {[%clk
0:02:39.2]} 36. fxe4 {[%clk 0:01:46.7]} 36... fxe4 {[%clk 0:02:40.2]} 37. Rd4
{[%clk 0:01:42.7]} 37... Nf6 {[%clk 0:02:36.4]} 38. b4 {[%clk 0:01:40.2]} 38...
g5 {[%clk 0:02:29.2]} 39. b5 {[%clk 0:01:34.7]} 39... Bxd6 {[%clk 0:02:28.9]}
40. Ra6 {[%clk 0:01:35.2]} 40... Rd8 {[%clk 0:02:29.7]} 41. b6 {[%clk
0:01:17.6]} 41... Ke7 {[%clk 0:02:30]} 42. b7 {[%clk 0:01:17.4]} 42... Bc5
{[%clk 0:02:20.9]} 43. Rxd8 {[%clk 0:01:17.5]} 43... Bxe3+ {[%clk 0:02:15]} 44.
Kf1 {[%clk 0:01:18.3]} 1-0

[Event "*** Titled Tuesday Blitz"]
[Site "Chess.com"]
[Date "2019.06.04"]
[Round "9"]
[White "cool4chess"]
[Black "temus_galaktionov"]
[Result "0-1"]
[WhiteElo "2376"]
[BlackElo "2732"]
[TimeControl "180+2"]
[EndTime "15:04:38 PDT"]
[Termination "temus_galaktionov won by resignation"]

1. e4 {[%clk 0:03:01.9]} 1... c6 {[%clk 0:03:01.1]} 2. d4 {[%clk 0:03:02.2]}
2... g6 {[%clk 0:03:02.2]} 3. Nf3 {[%clk 0:03:02.8]} 3... Bg7 {[%clk 0:03:03.4]}
4. Nc3 {[%clk 0:03:02]} 4... d6 {[%clk 0:03:04.6]} 5. Be2 {[%clk 0:03:02.2]}
5... Nd7 {[%clk 0:03:05.7]} 6. Be3 {[%clk 0:03:02.9]} 6... e5 {[%clk 0:03:06.5]}
7. Qd2 {[%clk 0:03:03.1]} 7... Ngf6 {[%clk 0:03:07.4]} 8. h3 {[%clk 0:03:02.6]}
8... O-O {[%clk 0:03:08.2]} 9. O-O {[%clk 0:03:04]} 9... Qe7 {[%clk 0:03:07.9]}
10. Rad1 {[%clk 0:03:03.9]} 10... Re8 {[%clk 0:03:03.8]} 11. dxe5 {[%clk
0:03:04.8]} 11... dxe5 {[%clk 0:03:03.8]} 12. Qd6 {[%clk 0:03:05.4]} 12... Qxd6
{[%clk 0:03:04.7]} 13. Rxd6 {[%clk 0:03:07.1]} 13... Bf8 {[%clk 0:03:05.2]} 14.
Rd2 {[%clk 0:03:06.2]} 14... Nc5 {[%clk 0:03:06]} 15. Bxc5 {[%clk 0:03:01.1]}
15... Bxc5 {[%clk 0:03:06.4]} 16. Bc4 {[%clk 0:03:01.8]} 16... h6 {[%clk
0:03:02.4]} 17. Rfd1 {[%clk 0:03:02.5]} 17... Be6 {[%clk 0:02:39.5]} 18. Bxe6
{[%clk 0:03:02.9]} 18... Rxe6 {[%clk 0:02:39.4]} 19. Rd8+ {[%clk 0:03:02]} 19...
Rxd8 {[%clk 0:02:40.1]} 20. Rxd8+ {[%clk 0:03:03.1]} 20... Kg7 {[%clk
0:02:41.3]} 21. g3 {[%clk 0:02:52.6]} 21... Bb4 {[%clk 0:02:27.8]} 22. Nd2
{[%clk 0:02:51.1]} 22... Bxc3 {[%clk 0:02:25.5]} 23. bxc3 {[%clk 0:02:53]} 23...
Re7 {[%clk 0:02:26.6]} 24. Nc4 {[%clk 0:02:53.2]} 24... Nxe4 {[%clk 0:02:25.9]}
25. Nd6 {[%clk 0:02:42.1]} 25... Nxd6 {[%clk 0:02:07.7]} 26. Rxd6 {[%clk
0:02:44]} 26... e4 {[%clk 0:02:06.4]} 27. Kf1 {[%clk 0:02:42.3]} 27... f5 {[%clk
0:02:03]} 28. Ke2 {[%clk 0:02:43.4]} 28... a6 {[%clk 0:01:48.4]} 29. Ke3 {[%clk
0:02:43]} 29... Kf7 {[%clk 0:01:47.4]} 30. h4 {[%clk 0:02:43.4]} 30... Kg7
{[%clk 0:01:42.2]} 31. Rd8 {[%clk 0:02:42]} 31... g5 {[%clk 0:01:42.7]} 32. hxg5
{[%clk 0:02:36.9]} 32... hxg5 {[%clk 0:01:43.5]} 33. Rd6 {[%clk 0:02:38.1]}
33... Kf7 {[%clk 0:01:43.3]} 34. Rh6 {[%clk 0:02:38.3]} 34... Rd7 {[%clk
0:01:38.7]} 35. Rh7+ {[%clk 0:02:38.1]} 35... Ke6 {[%clk 0:01:39.3]} 36. Rh6+
{[%clk 0:02:29.9]} 36... Ke5 {[%clk 0:01:40.3]} 37. Rg6 {[%clk 0:02:30.6]} 37...
f4+ {[%clk 0:01:40.7]} 38. gxf4+ {[%clk 0:02:31]} 38... gxf4+ {[%clk 0:01:41.6]}
39. Ke2 {[%clk 0:02:32.1]} 39... Rd5 {[%clk 0:01:39.8]} 40. Rg7 {[%clk
0:02:27.3]} 40... Rb5 {[%clk 0:01:39.7]} 41. Re7+ {[%clk 0:02:26.8]} 41... Kf5
{[%clk 0:01:34.8]} 42. Rf7+ {[%clk 0:02:27.9]} 42... Kg5 {[%clk 0:01:36]} 43.
Re7 {[%clk 0:02:26.7]} 43... Rb2 {[%clk 0:01:36]} 44. Kd2 {[%clk 0:02:27.2]}
44... Kf5 {[%clk 0:01:35.4]} 45. Rf7+ {[%clk 0:02:21.4]} 45... Kg4 {[%clk
0:01:36.4]} 46. Kc1 {[%clk 0:02:09.9]} 46... Rxa2 {[%clk 0:01:33.3]} 47. Rxb7
{[%clk 0:02:10.5]} 47... Kf3 {[%clk 0:01:33.8]} 48. Rf7 {[%clk 0:02:11.8]} 48...
Ra1+ {[%clk 0:01:34]} 49. Kb2 {[%clk 0:02:09.2]} 49... Rf1 {[%clk 0:01:34.8]}
50. Rf6 {[%clk 0:02:10.7]} 50... Rxf2 {[%clk 0:01:33.2]} 51. Rxc6 {[%clk
0:02:12.3]} 51... e3 {[%clk 0:01:33.2]} 52. Rxa6 {[%clk 0:02:13.7]} 52... e2
{[%clk 0:01:34.5]} 53. Re6 {[%clk 0:02:15.4]} 53... Rf1 {[%clk 0:01:35.8]} 54.
c4 {[%clk 0:02:16.8]} 54... e1=Q {[%clk 0:01:36.5]} 55. Rxe1 {[%clk 0:02:17.7]}
55... Rxe1 {[%clk 0:01:37.7]} 56. c5 {[%clk 0:02:19.3]} 56... Re5 {[%clk
0:01:38.3]} 0-1

[Event "*** Titled Tuesday Blitz"]
[Site "Chess.com"]
[Date "2019.06.04"]
[Round "9"]
[White "Fins0905"]
[Black "BillForster"]
[Result "1-0"]
[WhiteElo "2643"]
[BlackElo "1757"]
[TimeControl "180+2"]
[EndTime "15:05:10 PDT"]
[Termination "Fins0905 won by resignation"]

1. d4 {[%clk 0:03:01.9]} 1... d5 {[%clk 0:03:00]} 2. c4 {[%clk 0:03:02]} 2... c6
{[%clk 0:03:00.7]} 3. Nf3 {[%clk 0:03:00.7]} 3... Nf6 {[%clk 0:03:01.2]} 4. Nc3
{[%clk 0:03:01.5]} 4... e6 {[%clk 0:03:01.8]} 5. Bg5 {[%clk 0:03:01.6]} 5...
dxc4 {[%clk 0:03:02.3]} 6. a4 {[%clk 0:03:01.7]} 6... Bb4 {[%clk 0:03:01.3]} 7.
e3 {[%clk 0:02:57.6]} 7... Nbd7 {[%clk 0:02:50.9]} 8. Bxf6 {[%clk 0:02:50.8]}
8... Nxf6 {[%clk 0:02:48.8]} 9. Bxc4 {[%clk 0:02:52.4]} 9... O-O {[%clk
0:02:42.4]} 10. O-O {[%clk 0:02:52.4]} 10... c5 {[%clk 0:02:30.7]} 11. Na2
{[%clk 0:02:45]} 11... Qe7 {[%clk 0:02:07.7]} 12. Nxb4 {[%clk 0:02:39.1]} 12...
cxb4 {[%clk 0:02:07.6]} 13. a5 {[%clk 0:02:35.6]} 13... Bd7 {[%clk 0:02:06.1]}
14. Ne5 {[%clk 0:02:32.4]} 14... Rac8 {[%clk 0:01:57.5]} 15. Bd3 {[%clk
0:02:19.9]} 15... Bc6 {[%clk 0:01:51.7]} 16. Nxc6 {[%clk 0:02:03.5]} 16... Rxc6
{[%clk 0:01:50.5]} 17. Qb3 {[%clk 0:02:04.8]} 17... Rfc8 {[%clk 0:01:45.3]} 18.
Ra4 {[%clk 0:02:02.2]} 18... Nd5 {[%clk 0:01:41.4]} 19. Be4 {[%clk 0:01:54.1]}
19... Rc4 {[%clk 0:01:33.4]} 20. Bd3 {[%clk 0:01:46.5]} 20... R4c7 {[%clk
0:01:27]} 21. g3 {[%clk 0:01:42.4]} 21... Rc1 {[%clk 0:01:03.3]} 22. e4 {[%clk
0:01:37.3]} 22... Rxf1+ {[%clk 0:00:54.5]} 23. Kxf1 {[%clk 0:01:23.6]} 23...
Rc1+ {[%clk 0:00:53.2]} 24. Kg2 {[%clk 0:01:19]} 24... Nf6 {[%clk 0:00:49.8]}
25. Rxb4 {[%clk 0:01:05.2]} 25... g6 {[%clk 0:00:46.1]} 26. Rxb7 {[%clk
0:01:01.8]} 1-0

[Event "*** Titled Tuesday Blitz"]
[Site "Chess.com"]
[Date "2019.06.04"]
[Round "9"]
[White "TBergh98"]
[Black "PotapovaM"]
[Result "0-1"]
[WhiteElo "2407"]
[BlackElo "2516"]
[TimeControl "180+2"]
[EndTime "15:05:12 PDT"]
[Termination "PotapovaM won by checkmate"]

1. d4 {[%clk 0:03:01.9]} 1... Nf6 {[%clk 0:03:00.9]} 2. Bg5 {[%clk 0:03:03.2]}
2... c5 {[%clk 0:02:58.8]} 3. Nc3 {[%clk 0:03:03.7]} 3... cxd4 {[%clk
0:02:51.4]} 4. Qxd4 {[%clk 0:03:05.6]} 4... Nc6 {[%clk 0:02:51.9]} 5. Qh4 {[%clk
0:03:07.1]} 5... e6 {[%clk 0:02:25.9]} 6. e4 {[%clk 0:03:07.8]} 6... h6 {[%clk
0:02:22.2]} 7. O-O-O {[%clk 0:03:06]} 7... Be7 {[%clk 0:02:08]} 8. f4 {[%clk
0:03:06.5]} 8... O-O {[%clk 0:02:05.2]} 9. Nf3 {[%clk 0:03:07.1]} 9... hxg5
{[%clk 0:01:56.8]} 10. Nxg5 {[%clk 0:03:09]} 10... g6 {[%clk 0:01:53.7]} 11. Qh6
{[%clk 0:03:09.1]} 11... Re8 {[%clk 0:01:46.4]} 12. e5 {[%clk 0:02:46.1]} 12...
Bf8 {[%clk 0:01:42.4]} 13. Qh4 {[%clk 0:02:47.3]} 13... Bg7 {[%clk 0:01:07.5]}
14. exf6 {[%clk 0:02:46.7]} 14... Qxf6 {[%clk 0:01:07.3]} 15. Rd6 {[%clk
0:01:46.5]} 15... Ne7 {[%clk 0:00:53.7]} 16. Bd3 {[%clk 0:01:23.5]} 16... Nd5
{[%clk 0:00:49]} 17. Nxd5 {[%clk 0:01:16.1]} 17... Qxb2+ {[%clk 0:00:49.7]} 18.
Kd1 {[%clk 0:01:17.3]} 18... exd5 {[%clk 0:00:30.7]} 19. Qh7+ {[%clk 0:00:46]}
19... Kf8 {[%clk 0:00:30.7]} 20. Rxg6 {[%clk 0:00:32.1]} 20... Qa1+ {[%clk
0:00:29.2]} 21. Kd2 {[%clk 0:00:30.2]} 21... Bc3# {[%clk 0:00:30.8]} 0-1

[Event "*** Titled Tuesday Blitz"]
[Site "Chess.com"]
[Date "2019.06.04"]
[Round "9"]
[White "nitpicker"]
[Black "NemtsevIgor"]
[Result "1-0"]
[WhiteElo "2211"]
[BlackElo "2259"]
[TimeControl "180+2"]
[EndTime "15:05:36 PDT"]
[Termination "nitpicker won by resignation"]

1. d4 {[%clk 0:03:01.9]} 1... c6 {[%clk 0:03:01.2]} 2. c4 {[%clk 0:03:00.6]}
2... d6 {[%clk 0:03:02.5]} 3. Nc3 {[%clk 0:02:59]} 3... Nd7 {[%clk 0:03:03.7]}
4. e4 {[%clk 0:02:59.1]} 4... h6 {[%clk 0:03:05.1]} 5. Be3 {[%clk 0:02:40]} 5...
g5 {[%clk 0:03:05.2]} 6. h3 {[%clk 0:02:38.6]} 6... Bg7 {[%clk 0:03:06]} 7. Nf3
{[%clk 0:02:37.5]} 7... Nf8 {[%clk 0:03:04.3]} 8. Qd2 {[%clk 0:02:35.7]} 8...
Qa5 {[%clk 0:03:02.2]} 9. Bd3 {[%clk 0:02:23.9]} 9... Ne6 {[%clk 0:02:58.7]} 10.
O-O-O {[%clk 0:02:21]} 10... a6 {[%clk 0:02:58.5]} 11. Kb1 {[%clk 0:02:17.7]}
11... b5 {[%clk 0:02:59.3]} 12. d5 {[%clk 0:02:05.2]} 12... b4 {[%clk
0:02:51.1]} 13. Ne2 {[%clk 0:01:56.2]} 13... Nc5 {[%clk 0:02:51.8]} 14. Bd4
{[%clk 0:01:53.1]} 14... Nf6 {[%clk 0:02:39]} 15. e5 {[%clk 0:01:50.5]} 15...
dxe5 {[%clk 0:02:36]} 16. Nxe5 {[%clk 0:01:48.8]} 16... cxd5 {[%clk 0:02:31.5]}
17. cxd5 {[%clk 0:01:32.8]} 17... Nxd3 {[%clk 0:02:23.9]} 18. Nxd3 {[%clk
0:01:25]} 18... O-O {[%clk 0:02:15.7]} 19. Nxb4 {[%clk 0:01:15.1]} 19... Bf5+
{[%clk 0:02:11.6]} 20. Ka1 {[%clk 0:01:14.3]} 20... Qb5 {[%clk 0:01:43.5]} 21.
Nc6 {[%clk 0:01:06.7]} 21... Rfe8 {[%clk 0:01:34.2]} 22. Nc3 {[%clk 0:01:06.7]}
22... Qc4 {[%clk 0:01:29.5]} 23. b3 {[%clk 0:01:00.5]} 23... Qd3 {[%clk
0:01:11.4]} 24. Qxd3 {[%clk 0:01:00.6]} 24... Bxd3 {[%clk 0:01:12.5]} 25. Rxd3
{[%clk 0:01:01.8]} 25... e6 {[%clk 0:01:06.3]} 26. d6 {[%clk 0:00:58.1]} 26...
Rac8 {[%clk 0:01:00.8]} 27. Ne7+ {[%clk 0:00:56.3]} 27... Rxe7 {[%clk
0:00:48.9]} 28. dxe7 {[%clk 0:00:58.2]} 28... Re8 {[%clk 0:00:50.3]} 29. Bc5
{[%clk 0:00:56.7]} 29... Ne4 {[%clk 0:00:45.8]} 30. Kb2 {[%clk 0:00:51.1]} 30...
Nxc5 {[%clk 0:00:45.8]} 31. Rd8 {[%clk 0:00:50.2]} 31... Bxc3+ {[%clk
0:00:32.7]} 32. Kc2 {[%clk 0:00:51.2]} 32... Ne4 {[%clk 0:00:34.4]} 33. Rxe8+
{[%clk 0:00:51]} 33... Kg7 {[%clk 0:00:36]} 34. Rg8+ {[%clk 0:00:51.7]} 1-0

[Event "*** Titled Tuesday Blitz"]
[Site "Chess.com"]
[Date "2019.06.04"]
[Round "9"]
[White "jk13"]
[Black "Swarnapuri"]
[Result "0-1"]
[WhiteElo "2540"]
[BlackElo "2705"]
[TimeControl "180+2"]
[EndTime "15:05:43 PDT"]
[Termination "Swarnapuri won by resignation"]

1. e4 {[%clk 0:03:01.9]} 1... Nc6 {[%clk 0:03:01.6]} 2. Nf3 {[%clk 0:03:02.6]}
2... d6 {[%clk 0:03:02.8]} 3. Bb5 {[%clk 0:03:01.9]} 3... Nf6 {[%clk 0:03:04.7]}
4. Nc3 {[%clk 0:02:57.6]} 4... a6 {[%clk 0:03:06]} 5. Bxc6+ {[%clk 0:02:58.3]}
5... bxc6 {[%clk 0:03:07.9]} 6. h3 {[%clk 0:02:58.5]} 6... e5 {[%clk 0:03:06.9]}
7. d4 {[%clk 0:02:59.5]} 7... exd4 {[%clk 0:03:08]} 8. Nxd4 {[%clk 0:03:00.9]}
8... Bb7 {[%clk 0:03:07.3]} 9. O-O {[%clk 0:02:59.1]} 9... c5 {[%clk 0:03:08.6]}
10. Nf5 {[%clk 0:02:59.5]} 10... g6 {[%clk 0:03:09.3]} 11. Ng3 {[%clk
0:02:40.8]} 11... Bg7 {[%clk 0:03:09.9]} 12. e5 {[%clk 0:02:28.3]} 12... dxe5
{[%clk 0:03:10.1]} 13. Qe2 {[%clk 0:02:29.8]} 13... O-O {[%clk 0:03:09.6]} 14.
Bg5 {[%clk 0:02:17.4]} 14... Qd6 {[%clk 0:03:02.9]} 15. Rad1 {[%clk 0:02:06.9]}
15... Qc6 {[%clk 0:03:03.4]} 16. f3 {[%clk 0:02:02.7]} 16... Rfe8 {[%clk
0:03:03.6]} 17. Nge4 {[%clk 0:01:54.2]} 17... Nh5 {[%clk 0:03:02.5]} 18. Qc4
{[%clk 0:01:49.2]} 18... h6 {[%clk 0:02:20.5]} 19. Bh4 {[%clk 0:01:46]} 19...
Nf4 {[%clk 0:02:19.3]} 20. Qxc5 {[%clk 0:01:38.2]} 20... Qe6 {[%clk 0:02:06]}
21. Qxc7 {[%clk 0:01:25.1]} 21... Bxe4 {[%clk 0:02:06.6]} 22. fxe4 {[%clk
0:01:17.1]} 22... Rab8 {[%clk 0:02:07.9]} 23. Rd6 {[%clk 0:01:03.9]} 23... Qc8
{[%clk 0:01:57.1]} 24. Qa5 {[%clk 0:00:27]} 24... Rxb2 {[%clk 0:01:49]} 25. Rf2
{[%clk 0:00:27.3]} 25... Bf8 {[%clk 0:01:46]} 26. Rdd2 {[%clk 0:00:09.4]} 26...
Bb4 {[%clk 0:01:43.7]} 27. Qb6 {[%clk 0:00:06.6]} 27... Bxc3 {[%clk 0:01:43.6]}
28. Qf6 {[%clk 0:00:08.4]} 28... Rb1+ {[%clk 0:01:43.1]} 29. Kh2 {[%clk
0:00:09.5]} 29... Bxd2 {[%clk 0:01:44.4]} 30. Rxd2 {[%clk 0:00:11.3]} 30... Qe6
{[%clk 0:01:43.9]} 31. Rd8 {[%clk 0:00:09.7]} 31... Rxd8 {[%clk 0:01:42.1]} 32.
Qxd8+ {[%clk 0:00:10.2]} 32... Kg7 {[%clk 0:01:44]} 33. Be7 {[%clk 0:00:10]}
33... Rb7 {[%clk 0:01:39]} 34. Bf8+ {[%clk 0:00:09.4]} 34... Kh7 {[%clk
0:01:40.3]} 35. Bc5 {[%clk 0:00:09.1]} 35... Rd7 {[%clk 0:01:39.5]} 36. Qf8
{[%clk 0:00:10.3]} 36... Rd2 {[%clk 0:01:39.3]} 37. Kh1 {[%clk 0:00:11.5]} 37...
Rxg2 {[%clk 0:01:39.9]} 0-1

[Event "*** Titled Tuesday Blitz"]
[Site "Chess.com"]
[Date "2019.06.04"]
[Round "9"]
[White "Hikaru"]
[Black "mouseWLZ"]
[Result "1-0"]
[WhiteElo "3206"]
[BlackElo "2783"]
[TimeControl "180+2"]
[EndTime "15:05:48 PDT"]
[Termination "Hikaru won by resignation"]

1. Nf3 {[%clk 0:03:01.9]} 1... Nf6 {[%clk 0:03:00.3]} 2. b3 {[%clk 0:03:02.7]}
2... g6 {[%clk 0:03:01.3]} 3. Bb2 {[%clk 0:03:04]} 3... Bg7 {[%clk 0:03:03.2]}
4. d4 {[%clk 0:03:05.7]} 4... O-O {[%clk 0:03:04.3]} 5. e3 {[%clk 0:03:07.5]}
5... d6 {[%clk 0:03:05.7]} 6. Be2 {[%clk 0:03:08.4]} 6... Nbd7 {[%clk
0:03:06.6]} 7. O-O {[%clk 0:03:10.1]} 7... Qe8 {[%clk 0:03:07.8]} 8. c4 {[%clk
0:03:08.6]} 8... e5 {[%clk 0:03:08.5]} 9. dxe5 {[%clk 0:03:09.2]} 9... Nxe5
{[%clk 0:03:09.1]} 10. Nxe5 {[%clk 0:03:09.2]} 10... dxe5 {[%clk 0:03:09.1]} 11.
Ba3 {[%clk 0:03:09.7]} 11... Nd7 {[%clk 0:02:58.3]} 12. Bxf8 {[%clk 0:03:09.9]}
12... Nxf8 {[%clk 0:03:00.2]} 13. Nc3 {[%clk 0:03:11.1]} 13... c6 {[%clk
0:02:57.5]} 14. Ne4 {[%clk 0:03:12]} 14... f5 {[%clk 0:02:43.1]} 15. Nd6 {[%clk
0:03:12.3]} 15... Qe7 {[%clk 0:02:43.9]} 16. c5 {[%clk 0:03:10.2]} 16... Be6
{[%clk 0:02:43.5]} 17. e4 {[%clk 0:03:11]} 17... Rd8 {[%clk 0:02:43.1]} 18. Qc2
{[%clk 0:03:10.8]} 18... f4 {[%clk 0:02:30.9]} 19. Rad1 {[%clk 0:03:11.6]} 19...
h5 {[%clk 0:02:21.8]} 20. Bc4 {[%clk 0:03:02.1]} 20... Kh7 {[%clk 0:02:22]} 21.
Rd3 {[%clk 0:03:02.2]} 21... Bxc4 {[%clk 0:02:21.9]} 22. Qxc4 {[%clk 0:03:03.4]}
22... Ne6 {[%clk 0:02:20.4]} 23. b4 {[%clk 0:03:00.2]} 23... Nd4 {[%clk
0:02:20.9]} 24. b5 {[%clk 0:03:01.6]} 24... f3 {[%clk 0:02:12.4]} 25. g3 {[%clk
0:02:28.4]} 25... Qd7 {[%clk 0:02:07]} 26. Kh1 {[%clk 0:02:29.5]} 26... Qh3
{[%clk 0:02:04.1]} 27. Rg1 {[%clk 0:02:30.6]} 27... cxb5 {[%clk 0:01:40]} 28.
Qd5 {[%clk 0:02:13.2]} 28... Rd7 {[%clk 0:01:24.1]} 29. a3 {[%clk 0:01:50]}
29... a5 {[%clk 0:01:24]} 30. Qa2 {[%clk 0:01:39.7]} 30... b6 {[%clk 0:01:08.8]}
31. Qb1 {[%clk 0:01:29.9]} 31... bxc5 {[%clk 0:01:08.9]} 32. Nxb5 {[%clk
0:01:31]} 32... a4 {[%clk 0:01:04.4]} 33. Nxd4 {[%clk 0:01:29.1]} 33... Rxd4
{[%clk 0:01:03.1]} 34. Rxf3 {[%clk 0:01:29.1]} 34... Qg4 {[%clk 0:00:53.8]} 35.
Rf7 {[%clk 0:01:26.5]} 35... Qxe4+ {[%clk 0:00:53.7]} 36. Qxe4 {[%clk
0:01:27.1]} 36... Rxe4 {[%clk 0:00:55.6]} 37. Rb1 {[%clk 0:01:15.3]} 37... Kg8
{[%clk 0:00:45.8]} 38. Rbb7 {[%clk 0:01:14]} 38... Bf8 {[%clk 0:00:33.9]} 39.
Rf6 {[%clk 0:01:14.6]} 1-0